bitfinex/quotes_SOLUSD_20241110
["timestamp","ask_amount","ask_price","bid_price","bid_amount"]
[1731246664735,0.56,205.77,205.64,0.97164747]
[1731246667155,0.56,205.77,205.63,20.0]
[1731246668256,0.56,205.77,205.64,0.97167578]
[1731246673057,23.776884,205.76,205.6,22.6785]
[1731246673257,0.1,205.75,205.6,22.6785]
[1731246673671,23.776884,205.76,205.6,22.6785]
[1731246673864,23.776884,205.76,205.61,0.97187105]
[1731246674365,0.1,205.75,205.61,20.97187105]
[1731246674765,0.1,205.74,205.61,20.0]
[1731246674946,6.3649,205.73,205.61,20.0]
[1731246675142,23.776884,205.72,205.6,16.3405]
[1731246676646,23.776884,205.72,205.61,20.0]
[1731246678596,23.776884,205.72,205.61,20.97199303]
[1731246679064,6.3649,205.73,205.61,20.97199303]
[1731246682668,0.1,205.81,205.77,159.24]
[1731246682874,0.1,205.83,205.65,20.0]
[1731246683069,0.1,205.85,205.67,20.0]
[1731246683258,0.1,205.85,205.68,0.97143455]
[1731246683752,0.1,205.87,205.7,20.0]
[1731246685356,0.1,205.85,205.7,20.0]
[1731246685558,5.8649,205.84,205.7,20.0]
[1731246685758,5.8649,205.84,205.71,0.97138844]
[1731246686964,5.8649,205.84,205.73,20.0]
[1731246688495,5.8649,205.84,205.74,0.97127093]
[1731246688666,5.9649,205.89,205.74,0.97127093]
[1731246688863,5.8649,205.89,205.74,0.97127093]
[1731246690677,5.9649,205.89,205.74,0.97127093]
[1731246690870,0.1,205.88,205.75,20.0]
[1731246691576,0.1,205.88,205.74,20.0]
[1731246691770,0.1,205.88,205.74,43.776884]
[1731246692472,5.8649,205.89,205.74,43.776884]
[1731246692666,0.1,205.9,205.74,43.776884]
[1731246692667,0.1,205.9,205.77,20.0]
[1731246692882,0.1,205.9,205.78,0.97100663]
[1731246693383,5.8649,205.97,205.93,159.8]
[1731246693682,0.1,205.94,205.82,20.0]
[1731246693983,0.2,205.96,205.82,20.97094743]
[1731246694283,0.1,205.95,205.82,0.97094743]
[1731246695141,0.1,205.95,205.8,20.0]
[1731246695264,11.8298,205.99,205.79,23.776884]
[1731246695265,0.1,205.98,205.83,20.0]
[1731246695590,0.1,205.98,205.84,0.9707892]
[1731246695757,5.8649,205.99,205.84,0.9707892]
[1731246696156,5.8649,205.99,205.86,20.0]
[1731246696380,5.8649,205.99,205.87,0.97069987]
[1731246697362,5.8649,205.99,205.86,20.0]
[1731246697363,0.1,205.98,205.86,20.0]
[1731246697971,5.8649,205.99,205.86,20.0]
[1731246698672,23.876884,205.98,205.86,20.0]
[1731246699809,4.8535,206.04,205.9,20.0]
[1731246699810,5.8649,206.04,205.9,20.0]
[1731246700083,0.1,206.01,205.9,20.0]
[1731246700382,0.1,206.03,205.86,20.0]
[1731246700383,0.1,205.99,205.86,20.0]
[1731246701077,0.1,205.97,205.86,20.97078727]
[1731246701376,5.9649,206.04,205.87,23.776884]
[1731246701580,0.1,206.02,205.89,23.776884]
[1731246701766,0.1,206.02,205.9,20.0]
[1731246702168,0.1,206.0,205.9,20.0]
[1731246702384,0.1,206.02,205.9,20.0]
[1731246702785,0.1,205.98,205.86,20.0]
[1731246703087,0.1,205.96,205.86,0.97065023]
[1731246703376,0.1,205.96,205.85,16.4107]
[1731246703577,0.1,205.98,205.85,16.4107]
[1731246703882,0.1,206.01,205.85,16.4107]
[1731246703883,0.1,205.96,205.85,16.4107]
[1731246704083,0.1,205.99,205.85,16.4107]
[1731246704678,0.1,206.03,205.86,43.776884]
[1731246705159,0.2,206.03,205.86,43.776884]
[1731246706162,0.1,206.0,205.86,43.776884]
[1731246706683,0.1,205.98,205.86,43.776884]
[1731246707263,0.1,206.0,205.86,43.776884]
[1731246707374,0.2,206.02,205.86,43.776884]
[1731246707876,0.1,205.98,205.86,43.776884]
[1731246708373,0.1,206.01,205.86,43.776884]
[1731246708771,0.1,206.01,205.87,0.97072836]
[1731246708981,0.1,205.98,205.87,0.97072836]
[1731246709768,6.0649,206.04,205.88,23.776884]
[1731246710077,5.8649,206.04,205.93,20.0]
[1731246710784,5.8649,206.04,205.95,20.0]
[1731246715075,0.1,206.08,205.96,23.776884]
[1731246715272,0.2,206.08,205.97,20.0]
[1731246715467,0.2,206.08,205.95,20.0]
[1731246716114,0.1,206.08,205.97,20.0]
[1731246716584,0.1,206.08,205.99,20.0]
[1731246716893,5.9649,206.1,205.99,20.0]
[1731246717291,5.8649,206.1,206.0,0.97013258]
[1731246717493,5.9649,206.1,206.0,0.97013258]
[1731246717812,0.1,206.03,205.92,6.2746]
[1731246718105,0.1,206.03,205.92,0.97053608]
[1731246718474,0.1,206.03,205.88,15.1482]
[1731246718681,0.1,206.03,205.89,0.97052899]
[1731246718984,0.1,206.05,205.89,0.97052899]
[1731246719385,0.1,206.05,205.9,23.776884]
[1731246719580,0.1,206.05,205.92,23.776884]
[1731246719787,0.1,206.05,205.93,20.0]
[1731246719986,0.1,206.03,205.94,23.776884]
[1731246720168,0.1,206.03,205.95,20.0]
[1731246720369,0.1,206.03,205.93,20.0]
[1731246722777,0.1,206.03,205.95,20.0]
[1731246722977,0.1,206.07,205.96,23.776884]
[1731246723290,0.1,206.09,206.01,20.0]
[1731246724797,5.9649,206.1,206.01,20.0]
[1731246724982,5.9649,206.1,206.03,20.0]
[1731246725188,5.9649,206.1,206.04,23.776884]
[1731246725491,5.9649,206.1,206.03,20.0]
[1731246726178,5.8649,206.1,206.03,20.0]
[1731246726505,5.9649,206.15,206.05,20.0]
[1731246726677,5.8649,206.15,206.05,20.0]
[1731246726877,5.8649,206.15,206.07,20.0]
[1731246727289,5.8649,206.2,206.1,23.776884]
[1731246727506,5.8649,206.2,206.11,20.0]
[1731246727997,0.1,206.19,206.11,20.0]
[1731246728380,5.8649,206.2,206.11,20.0]
[1731246728702,0.1,206.19,206.11,20.0]
[1731246729697,0.1,206.14,206.0,6.0423]
[1731246729878,0.1,206.16,206.01,20.9700503]
[1731246730286,0.1,206.18,206.01,20.9700503]
[1731246730493,5.9649,206.2,206.01,20.9700503]
[1731246730703,5.9649,206.2,206.02,15.983]
[1731246730892,0.1,206.2,206.03,20.96974504]
[1731246731122,0.1,206.2,206.04,23.776884]
[1731246731292,0.1,206.2,206.08,23.776884]
[1731246731495,0.1,206.22,206.09,20.0]
[1731246731681,0.1,206.21,206.09,20.0]
[1731246732099,0.1,206.21,206.02,22.59121686]
[1731246732100,0.1,206.21,206.03,20.0]
[1731246732297,0.1,206.18,206.03,21.10940847]
[1731246732496,0.1,206.18,206.03,25.96040847]
[1731246733300,0.1,206.18,206.05,20.0]
[1731246733604,0.2,206.15,206.05,24.8531]
[1731246733808,0.2,206.15,206.05,36.986]
[1731246734195,0.1,206.12,206.05,16.986]
[1731246734510,0.2,206.14,206.05,16.986]
[1731246735306,0.2,206.12,206.05,12.1329]
[1731246735603,0.2,206.12,206.06,20.0]
[1731246736602,5.8649,206.15,205.95,15.983]
[1731246736603,0.2,206.14,205.96,20.97016326]
[1731246736900,0.2,206.2,206.03,23.776884]
[1731246737106,5.8649,206.21,206.08,20.0]
[1731246737291,5.8649,206.21,206.11,20.0]
[1731246738699,5.8649,206.21,205.98,0.96968607]
[1731246738700,0.1,206.2,206.0,15.983]
[1731246738906,0.1,206.14,206.01,1.10951618]
[1731246739218,0.2,206.16,206.01,1.10951618]
[1731246740205,0.2,206.16,206.02,0.97005242]
[1731246741322,0.1,206.13,206.02,23.776884]
[1731246741603,0.1,206.15,206.02,23.776884]
[1731246742113,0.1,206.13,206.02,23.776884]
[1731246742804,0.1,206.13,206.05,20.0]
[1731246743110,0.1,206.14,206.05,20.0]
[1731246743298,0.1,206.13,206.05,20.0]
[1731246743691,0.2,206.14,206.05,20.0]
[1731246744404,0.1,206.16,206.05,20.0]
[1731246745993,0.1,206.13,206.05,20.0]
[1731246746390,0.2,206.16,206.05,20.0]
[1731246746791,0.1,206.13,206.05,20.0]
[1731246746992,0.1,206.16,206.05,20.0]
[1731246747512,0.1,206.16,206.07,20.0]
[1731246748310,0.1,206.15,206.07,20.0]
[1731246748613,0.1,206.16,206.07,20.0]
[1731246749186,0.2,206.19,206.07,20.0]
[1731246749392,0.2,206.19,206.09,20.0]
[1731246749697,0.1,206.19,206.09,20.96985857]
[1731246749891,6.0649,206.21,206.09,20.96985857]
[1731246750512,5.9649,206.21,206.11,20.0]
[1731246750892,6.0649,206.21,206.11,20.0]
[1731246751405,5.8649,206.21,206.13,20.0]
[1731246752224,6.0649,206.24,206.15,20.0]
[1731246752410,0.1,206.27,206.17,20.0]
[1731246752586,6.1649,206.29,206.19,20.0]
[1731246752795,0.1,206.25,206.21,20.0]
[1731246753219,0.1,206.25,206.14,20.0]
[1731246753510,0.2,206.29,206.18,20.0]
[1731246753711,0.2,206.29,206.2,20.0]
[1731246754017,0.1,206.25,206.2,20.0]
[1731246754210,0.1,206.27,206.2,20.0]
[1731246754406,5.55163039,206.38,206.2,20.0]
[1731246754407,0.1,206.35,206.21,23.776884]
[1731246754717,0.1,206.37,206.26,20.0]
[1731246754903,0.1,206.37,206.27,23.776884]
[1731246755085,0.1,206.37,206.28,20.0]
[1731246755289,0.1,206.37,206.3,20.0]
[1731246755486,0.1,206.37,206.32,20.0]
[1731246757495,0.2,206.37,206.24,20.0]
[1731246757696,0.2,206.37,206.26,20.0]
[1731246758314,0.2,206.37,206.28,20.0]
[1731246758717,0.1,206.34,206.28,20.0]
[1731246758894,0.1,206.34,206.22,1.10838632]
[1731246758895,0.1,206.34,206.22,21.10838632]
[1731246759712,0.1,206.32,206.22,1.10838632]
[1731246759926,0.1,206.29,206.22,1.10838632]
[1731246760222,0.1,206.27,206.22,1.10838632]
[1731246760725,0.2,206.29,206.15,16.5853]
[1731246760921,0.2,206.29,206.16,0.02908596]
[1731246761511,0.1,206.3,206.16,20.10782517]
[1731246761709,0.1,206.3,206.17,0.99834031]
[1731246762431,0.1,206.37,206.22,23.776884]
[1731246762614,0.2,206.37,206.25,20.0]
[1731246762808,0.2,206.37,206.27,20.0]
[1731246763208,0.1,206.34,206.26,23.776884]
[1731246763811,0.1,206.36,206.26,23.776884]
[1731246764020,0.1,206.34,206.18,1.10860136]
[1731246764219,0.1,206.33,206.19,23.776884]
[1731246764410,0.1,206.33,206.2,20.0]
[1731246764726,0.1,206.31,206.19,23.776884]
[1731246766214,0.2,206.31,206.19,23.776884]
[1731246766420,0.2,206.31,206.18,1.10860136]
[1731246766734,0.2,206.31,206.19,0.02908596]
[1731246767634,0.2,206.31,206.19,23.80596996]
[1731246767834,0.1,206.31,206.22,20.0]
[1731246768137,0.1,206.31,206.23,23.776884]
[1731246768434,0.2,206.37,206.25,23.776884]
[1731246768659,0.1,206.34,206.26,20.0]
[1731246768930,6.0649,206.38,206.26,20.0]
[1731246769115,0.1,206.36,206.26,20.0]
[1731246769427,0.1,206.36,206.27,23.776884]
[1731246771117,6.0649,206.38,206.27,23.776884]
[1731246771927,5.9649,206.38,206.27,23.776884]
[1731246772316,0.1,206.38,206.3,20.0]
[1731246773333,0.1,206.34,206.24,23.776884]
[1731246774842,0.1,206.34,206.23,16.4386]
[1731246774843,0.1,206.34,206.26,23.776884]
[1731246776167,0.1,206.36,206.26,23.776884]
[1731246776950,0.1,206.34,206.26,23.776884]
[1731246777440,0.1,206.36,206.26,23.776884]
[1731246777640,0.1,206.34,206.26,23.776884]
[1731246777937,0.1,206.36,206.26,23.776884]
[1731246780142,0.1,206.38,206.28,23.776884]
[1731246781152,0.1,206.36,206.28,23.776884]
[1731246781354,0.1,206.38,206.28,23.776884]
[1731246782046,0.1,206.36,206.28,23.776884]
[1731246782248,0.1,206.36,206.26,23.776884]
[1731246782635,0.1,206.36,206.28,23.776884]
[1731246782838,0.1,206.38,206.28,23.776884]
[1731246783035,0.1,206.36,206.27,20.0]
[1731246783247,0.1,206.36,206.24,20.0]
[1731246784461,0.1,206.34,206.24,20.0]
[1731246785655,0.1,206.31,206.2,6.0218]
[1731246786159,0.1,206.31,206.18,16.90210136]
[1731246786448,0.1,206.3,206.19,0.02108596]
[1731246787248,0.1,206.28,206.19,0.02108596]
[1731246787558,0.1,206.26,206.19,0.02108596]
[1731246787848,0.2,206.31,206.15,0.99055126]
[1731246788052,5.8649,206.34,206.15,0.99055126]
[1731246788053,0.1,206.33,206.16,6.42391829]
[1731246788257,5.9649,206.34,206.17,0.96913]
[1731246788424,5.9649,206.34,206.18,12.44650945]
[1731246788629,0.1,206.32,206.19,20.99019987]
[1731246788940,0.1,206.32,206.21,20.0]
[1731246789134,0.1,206.32,206.23,20.0]
[1731246789343,0.1,206.32,206.21,20.0]
[1731246789639,0.2,206.29,206.15,20.0]
[1731246789959,0.1,206.27,206.17,0.02108596]
[1731246790156,0.1,206.26,206.17,0.02108596]
[1731246790344,0.1,206.25,206.15,0.02108596]
[1731246790748,0.1,206.25,206.13,19.7715]
[1731246791241,0.1,206.25,206.16,23.776884]
[1731246791435,0.1,206.25,206.15,20.0]
[1731246791646,0.1,206.24,206.14,20.0]
[1731246792746,23.776884,206.33,206.15,23.776884]
[1731246793145,23.776884,206.33,206.14,23.776884]
[1731246793146,0.1,206.32,206.14,23.776884]
[1731246793353,0.1,206.3,206.13,4.0]
[1731246793541,23.776884,206.31,206.13,4.0]
[1731246793942,0.1,206.37,206.14,0.96962262]
[1731246794138,23.876884,206.37,206.14,0.96962262]
[1731246794750,23.876884,206.37,206.15,23.776884]
[1731246794975,0.1,206.4,206.18,20.0]
[1731246795145,0.1,206.4,206.2,20.0]
[1731246795556,5.5649,206.39,206.2,20.0]
[1731246795862,5.5649,206.39,206.23,23.776884]
[1731246796041,5.5649,206.39,206.24,20.0]
[1731246796354,5.5649,206.39,206.26,20.0]
[1731246796953,5.5649,206.39,206.2,20.0]
[1731246797255,5.5649,206.39,206.24,20.0]
[1731246800549,23.776884,206.36,206.15,0.96942749]
[1731246800748,23.776884,206.36,206.15,20.96942749]
[1731246800956,23.776884,206.36,206.16,23.776884]
[1731246801263,23.776884,206.36,206.21,20.0]
[1731246802042,23.776884,206.36,206.2,23.776884]
[1731246802255,23.776884,206.36,206.19,20.0]
[1731246802463,23.776884,206.36,206.2,23.776884]
[1731246805767,23.776884,206.36,206.21,20.0]
[1731246806355,5.5649,206.37,206.23,20.0]
[1731246806561,5.5649,206.37,206.24,23.776884]
[1731246806759,5.5649,206.37,206.26,23.776884]
[1731246807056,5.5649,206.37,206.24,0.96915591]
[1731246807057,5.5649,206.37,206.25,23.776884]
[1731246807266,5.5649,206.46,206.27,43.776884]
[1731246814252,5.5649,206.46,206.29,23.776884]
[1731246814573,5.5649,206.46,206.31,23.776884]
[1731246816056,5.5649,206.46,206.33,23.776884]
[1731246816262,5.5649,206.46,206.34,20.0]
[1731246816466,5.5649,206.46,206.35,23.776884]
[1731246818286,12.2298,206.49,206.36,20.0]
[1731246818457,5.5649,206.5,206.37,23.776884]
[1731246819160,5.5649,206.5,206.36,23.776884]
[1731246819365,5.5649,206.5,206.38,23.776884]
[1731246820556,12.2298,206.52,206.37,20.0]
[1731246820557,12.2298,206.52,206.4,23.776884]
[1731246821072,5.5649,206.55,206.4,23.776884]
[1731246821282,17.7947,206.55,206.4,23.776884]
[1731246823184,17.7947,206.55,206.38,23.776884]
[1731246824983,17.7947,206.55,206.37,15.786]
[1731246826185,17.7947,206.55,206.38,23.776884]
[1731246826382,17.7947,206.55,206.37,15.786]
[1731246826580,17.7947,206.55,206.32,15.0801]
[1731246826772,17.7947,206.55,206.33,0.10773989]
[1731246827081,17.7947,206.55,206.34,6.42391829]
[1731246827882,17.7947,206.55,206.35,23.776884]
[1731246828378,17.7947,206.55,206.33,23.776884]
[1731246828583,17.7947,206.55,206.33,23.88462389]
[1731246828759,17.7947,206.55,206.34,0.10773467]
[1731246828960,17.7947,206.55,206.33,23.776884]
[1731246830566,0.1,206.51,206.32,6.42391829]
[1731246830769,5.5649,206.5,206.33,0.02908596]
[1731246830964,5.5649,206.48,206.27,16.18821765]
[1731246831189,23.776884,206.45,206.24,3.46395315]
[1731246831365,23.776884,206.43,206.21,15.92141553]
[1731246831566,5.5649,206.42,206.21,15.0801]
[1731246831982,23.776884,206.41,206.21,15.0801]
[1731246832176,23.776884,206.41,206.18,0.84199838]
[1731246833170,23.776884,206.41,206.18,20.84199838]
[1731246833581,23.776884,206.41,206.19,23.776884]
[1731246834175,23.776884,206.41,206.21,23.776884]
[1731246834482,5.5649,206.42,206.21,23.776884]
[1731246834778,5.5649,206.42,206.23,23.776884]
[1731246835173,5.5649,206.42,206.25,23.776884]
[1731246839886,23.776884,206.41,206.25,23.776884]
[1731246843180,5.5649,206.42,206.25,23.776884]
[1731246844380,23.776884,206.41,206.25,23.776884]
[1731246845886,5.5649,206.4,206.25,23.776884]
[1731246848475,5.5649,206.4,206.25,24.7458089]
[1731246848678,5.5649,206.4,206.27,23.776884]
[1731246849070,5.5649,206.4,206.27,29.79947516]
[1731246849277,5.5649,206.4,206.29,23.776884]
[1731246849887,5.5649,206.53,206.29,23.776884]
[1731246850078,0.1,206.52,206.29,23.776884]
[1731246850770,5.5649,206.51,206.29,23.776884]
[1731246850972,23.776884,206.49,206.27,23.776884]
[1731246851669,5.5649,206.5,206.29,23.776884]
[1731246851882,12.2298,206.55,206.34,0.1]
[1731246852586,12.2298,206.55,206.34,6.08914051]
[1731246852791,12.2298,206.55,206.35,23.776884]
[1731246856282,5.5649,206.56,206.39,23.776884]
[1731246856777,12.2298,206.55,206.38,23.776884]
[1731246857483,12.2298,206.55,206.31,21.5466]
[1731246857484,23.876884,206.54,206.31,21.5466]
[1731246857699,23.776884,206.52,206.31,21.5466]
[1731246857891,23.876884,206.52,206.31,21.5466]
[1731246858391,0.1,206.51,206.31,21.5466]
[1731246858581,23.776884,206.49,206.26,21.04104051]
[1731246859800,23.776884,206.49,206.27,23.776884]
[1731246861210,25.6649,206.48,206.26,5.98914051]
[1731246861388,23.876884,206.45,206.21,15.0519]
[1731246861581,23.776884,206.45,206.21,15.0519]
[1731246861903,23.776884,206.45,206.22,6.99167012]
[1731246862402,23.776884,206.43,206.23,0.02908596]
[1731246862601,23.776884,206.43,206.22,0.02908596]
[1731246863181,23.876884,206.43,206.22,0.02908596]
[1731246863594,23.976884,206.43,206.22,0.02908596]
[1731246864416,23.776884,206.43,206.22,0.02908596]
[1731246865009,23.776884,206.43,206.25,23.776884]
[1731246865307,23.776884,206.43,206.26,20.02908596]
[1731246865605,5.5649,206.44,206.3,20.0]
[1731246867785,23.776884,206.43,206.22,20.0]
[1731246868101,23.776884,206.43,206.23,0.02908596]
[1731246868484,23.776884,206.37,206.23,0.02908596]
[1731246868680,4.844,206.44,206.02,22.3243]
[1731246868681,29.441784,206.33,206.02,22.3243]
[1731246868894,29.441784,206.33,206.1,0.84256868]
[1731246869097,29.441784,206.33,206.07,0.1]
[1731246869302,29.341784,206.33,206.07,5.98914051]
[1731246869606,29.441784,206.33,206.07,5.98914051]
[1731246869807,29.341784,206.33,206.07,5.98914051]
[1731246869986,29.341784,206.33,206.08,23.776884]
[1731246870192,29.341784,206.33,206.09,23.776884]
[1731246870489,5.5649,206.33,206.11,23.776884]
[1731246870687,5.5649,206.33,206.12,20.0]
[1731246870902,23.776884,206.32,206.06,20.8425553]
[1731246871106,23.776884,206.32,206.07,0.1]
[1731246871407,23.776884,206.32,206.08,20.1]
[1731246871610,23.776884,206.32,206.08,26.08914051]
[1731246871784,5.5649,206.33,206.08,26.08914051]
[1731246871980,5.5649,206.33,206.09,23.776884]
[1731246872184,5.5649,206.33,206.13,23.776884]
[1731246872384,5.5649,206.33,206.14,20.0]
[1731246872582,5.5649,206.33,206.16,20.0]
[1731246872810,23.776884,206.32,206.18,20.0]
[1731246873492,23.776884,206.32,206.09,20.0]
[1731246873814,23.776884,206.32,206.12,23.776884]
[1731246874016,23.776884,206.32,206.13,20.0]
[1731246874191,23.776884,206.32,206.15,20.0]
[1731246874390,23.776884,206.32,206.17,20.0]
[1731246875383,23.776884,206.32,206.09,20.0]
[1731246875686,23.776884,206.32,206.11,20.0]
[1731246875887,28.723684,206.32,206.1,23.776884]
[1731246876109,28.723684,206.32,206.06,0.8425553]
[1731246876110,28.823684,206.32,206.06,0.8425553]
[1731246876302,5.5649,206.31,206.06,0.8425553]
[1731246876610,23.776884,206.3,206.06,0.8425553]
[1731246876912,43.776884,206.28,206.03,11.04215739]
[1731246878105,23.776884,206.28,206.04,20.0]
[1731246878407,23.776884,206.28,206.07,23.776884]
[1731246878586,23.776884,206.28,206.11,23.776884]
[1731246878783,23.776884,206.28,206.12,20.0]
[1731246878987,19.373939,206.27,206.12,20.0]
[1731246880797,19.373939,206.27,206.14,20.0]
[1731246882303,19.373939,206.27,206.05,24.17629623]
[1731246882304,19.373939,206.27,206.16,20.0]
[1731246882506,5.5649,206.29,206.19,23.776884]
[1731246882702,5.5649,206.29,206.14,16.1343]
[1731246882703,5.5649,206.29,206.22,20.0]
[1731246884808,5.5649,206.29,206.16,23.776884]
[1731246885024,5.5649,206.29,206.17,20.0]
[1731246885311,5.5649,206.29,206.18,23.776884]
[1731246885490,5.5649,206.29,206.09,16.1343]
[1731246885689,5.5649,206.29,206.09,17.10398957]
[1731246885892,5.5649,206.29,206.09,23.09313008]
[1731246886697,5.5649,206.29,206.1,43.776884]
[1731246888318,5.5649,206.29,206.15,20.0]
[1731246888805,5.5649,206.29,206.17,20.0]
[1731246889211,5.5649,206.29,206.19,20.0]
[1731246890204,5.5649,206.29,206.15,20.0]
[1731246890408,5.5649,206.29,206.11,0.96954111]
[1731246890614,5.5649,206.29,206.09,16.1343]
[1731246891893,5.5649,206.29,206.12,23.776884]
[1731246892095,5.5649,206.29,206.13,20.0]
[1731246892315,5.5649,206.29,206.15,20.0]
[1731246892699,5.5649,206.29,206.17,20.0]
[1731246893399,5.5649,206.29,206.11,20.0]
[1731246893601,5.5649,206.29,206.13,20.0]
[1731246893894,5.5649,206.29,206.14,23.776884]
[1731246894104,5.5649,206.29,206.15,20.0]
[1731246894309,5.5649,206.29,206.11,20.0]
[1731246895104,5.5649,206.29,206.1,20.0]
[1731246895530,10.4124,206.29,206.1,20.0]
[1731246895706,10.4124,206.29,206.04,5.05272302]
[1731246895707,23.776884,206.28,206.04,21.28572302]
[1731246895908,23.776884,206.26,206.04,21.28572302]
[1731246896104,23.776884,206.26,206.04,16.233]
[1731246896514,5.5649,206.25,206.04,16.233]
[1731246897121,5.5649,206.25,206.05,23.776884]
[1731246898216,5.5649,206.25,206.09,23.776884]
[1731246898517,5.5649,206.25,206.1,20.0]
[1731246903422,23.876884,206.24,206.0,21.0065]
[1731246903629,23.776884,206.22,206.02,23.88477637]
[1731246903811,23.776884,206.22,206.02,23.80596996]
[1731246904714,23.776884,206.22,206.05,20.0]
[1731246904913,28.626084,206.22,206.07,20.0]
[1731246905116,5.5649,206.23,206.07,20.0]
[1731246905728,5.5649,206.23,206.09,20.0]
[1731246907124,10.4138,206.23,206.01,43.776884]
[1731246907332,23.876884,206.2,206.01,0.02908596]
[1731246907513,23.776884,206.18,206.01,0.02908596]
[1731246907835,23.776884,206.18,205.97,0.02908596]
[1731246908319,23.776884,206.18,205.96,0.02908596]
[1731246908715,23.776884,206.18,205.98,20.0]
[1731246908933,23.776884,206.18,206.01,23.776884]
[1731246909112,23.776884,206.18,206.02,20.02908596]
[1731246909741,5.5649,206.17,206.02,0.02908596]
[1731246910027,5.5649,206.17,205.96,20.0]
[1731246910339,23.776884,206.16,205.97,0.02908596]
[1731246910542,5.5649,206.13,205.93,16.996]
[1731246910832,23.876884,206.1,205.93,16.996]
[1731246911041,23.876884,206.08,205.93,41.276]
[1731246911618,0.1,206.08,205.93,41.276]
[1731246911816,5.5649,206.05,205.93,12.14]
[1731246912119,0.1,206.04,205.93,12.14]
[1731246912432,10.4185,206.03,205.81,4.8588]
[1731246912813,0.1,206.01,205.81,4.8588]
[1731246913022,23.776884,206.02,205.81,17.0059]
[1731246913023,5.5649,206.0,205.81,17.0059]
[1731246913546,5.6649,206.0,205.81,17.0059]
[1731246913919,5.6649,206.0,205.81,12.1471]
[1731246914118,4.8546,205.99,205.81,12.1471]
[1731246914330,0.1,205.98,205.81,12.1471]
[1731246914537,5.5649,205.97,205.81,12.1471]
[1731246915417,5.5649,205.97,205.77,4.8597]
[1731246915613,10.42,205.97,205.77,4.8597]
[1731246916034,5.5649,205.97,205.77,4.8597]
[1731246917325,5.5649,205.97,205.79,20.0]
[1731246917540,5.5649,205.97,205.8,23.776884]
[1731246917742,5.5649,205.97,205.83,20.0]
[1731246918238,5.5649,205.97,205.85,20.0]
[1731246919348,5.5649,205.97,205.86,23.776884]
[1731246919521,5.5649,205.97,205.88,23.776884]
[1731246919725,5.5649,205.97,205.9,23.776884]
[1731246920343,5.5649,205.97,205.88,23.776884]
[1731246920344,5.5649,205.97,205.91,20.0]
[1731246920526,5.5649,205.97,205.93,20.0]
[1731246921429,5.6649,205.97,205.78,19.6]
[1731246921741,5.6649,205.97,205.77,23.876884]
[1731246921942,5.6649,205.97,205.77,29.86602451]
[1731246922319,5.5649,205.97,205.79,23.876884]
[1731246922537,5.5649,205.97,205.79,29.86602451]
[1731246922738,5.5649,205.97,205.82,0.1]
[1731246923048,5.5649,206.04,205.9,23.776884]
[1731246923350,5.5649,206.04,205.92,23.776884]